bitfinex/quotes_ETHUSD_20251008
["timestamp","ask_amount","ask_price","bid_price","bid_amount"]
[1759888127013,0.002,4488.3,4488.2,14.93079207]
[1759888127518,0.002,4488.3,4488.2,29.43079207]
[1759888131620,0.002,4488.3,4488.2,32.53500204]
[1759888132020,0.002,4488.3,4488.2,29.43079207]
[1759888134017,0.002,4488.3,4488.2,24.59479207]
[1759888134618,0.002,4488.3,4488.2,29.43179207]
[1759888135002,0.002,4488.3,4488.2,24.59479207]
[1759888135200,0.002,4488.3,4488.2,29.42979207]
[1759888135716,0.002,4488.3,4488.2,24.59479207]
[1759888135899,0.002,4488.3,4488.2,29.42979207]
[1759888136415,0.002,4488.3,4488.2,24.59479207]
[1759888136591,0.002,4488.3,4488.2,29.42979207]
[1759888136792,0.002,4488.3,4488.2,22.04119207]
[1759888137107,0.002,4488.3,4488.2,24.47097696]
[1759888137499,0.002,4488.3,4488.2,18.84776699]
[1759888137700,0.002,4488.3,4488.2,26.39097696]
[1759888141801,0.002,4488.3,4488.2,5.81916699]
[1759888142111,0.002,4488.3,4488.2,10.96467467]
[1759888142293,0.002,4488.3,4488.2,25.46467467]
[1759888143126,0.002,4488.3,4488.2,22.94567467]
[1759888143433,0.002,4488.3,4488.2,27.78167467]
[1759888144807,0.01,4488.9,4488.8,2.86136688]
[1759888145015,0.01,4488.9,4488.8,13.98692351]
[1759888145224,0.002,4489.2,4488.9,2.5536]
[1759888145405,0.002,4489.2,4489.1,3.84900997]
[1759888145735,0.002,4489.2,4489.1,6.07662797]
[1759888145928,0.002,4489.2,4489.1,6.52522797]
[1759888146129,0.002,4489.2,4489.1,22.51957237]
[1759888147246,0.002,4489.2,4489.1,22.96683314]
[1759888147545,0.002,4489.2,4489.1,23.44479473]
[1759888149135,0.002,4489.2,4489.1,25.36479473]
[1759888150357,0.01,4490.9,4489.8,2.8608707]
[1759888150530,0.20821884,4490.8,4489.8,10.51528067]
[1759888150713,0.20821884,4490.7,4489.8,10.96388067]
[1759888150915,0.01,4490.9,4489.8,25.67209951]
[1759888151114,0.20821746,4490.8,4489.8,25.67209951]
[1759888151314,0.20821746,4490.7,4489.8,25.67209951]
[1759888151515,0.01,4490.9,4489.8,25.67209951]
[1759888151740,0.2082016,4490.8,4489.8,25.67209951]
[1759888151943,0.2082016,4490.7,4489.8,25.67209951]
[1759888152240,0.01,4490.9,4489.8,25.67209951]
[1759888152241,0.002,4490.1,4489.8,25.67209951]
[1759888154767,0.002,4490.1,4489.8,25.67109951]
[1759888154930,0.002,4490.1,4489.8,27.92286996]
[1759888157763,0.002,4490.1,4489.8,25.40486996]
[1759888157942,0.002,4490.1,4489.8,27.92286996]
[1759888158844,0.002,4490.1,4489.8,25.40486996]
[1759888159045,0.002,4490.1,4489.8,28.67591524]
[1759888159517,0.002,4490.1,4489.8,26.15791524]
[1759888159723,0.002,4490.1,4489.8,28.67591524]
[1759888159945,0.002,4490.1,4489.8,26.15791524]
[1759888160266,0.002,4490.1,4489.8,28.67591524]
[1759888160551,0.002,4490.1,4489.8,21.45884115]
[1759888160759,0.002,4490.1,4489.8,21.7250707]
[1759888160939,0.002,4490.1,4489.8,19.3564707]
[1759888161357,0.002,4490.1,4489.8,19.7842707]
[1759888161556,0.002,4490.1,4489.8,0.539]
[1759888161857,0.002,4490.1,4489.8,3.057]
[1759888162053,0.002,4490.1,4489.8,17.557]
[1759888162356,0.002,4490.1,4489.8,17.2662707]
[1759888162536,0.002,4490.1,4489.8,5.2842707]
[1759888162853,0.002,4490.1,4489.8,0.1112]
[1759888163023,0.002,4490.1,4489.8,2.6292]
[1759888163461,0.002,4490.1,4489.8,0.1112]
[1759888163627,0.002,4490.1,4489.8,2.6292]
[1759888163959,0.002,4490.1,4489.8,0.1112]
[1759888164361,0.002,4490.1,4489.8,2.6292]
[1759888165057,0.002,4490.1,4489.8,0.1112]
[1759888165556,0.002,4490.1,4489.8,2.6292]
[1759888165758,0.002,4490.1,4489.8,0.1112]
[1759888165957,0.002,4490.1,4489.8,2.6292]
[1759888166328,0.002,4490.1,4489.8,0.1112]
[1759888166528,0.002,4490.1,4489.8,2.6292]
[1759888168053,0.002,4490.1,4489.8,0.1112]
[1759888168275,0.002,4490.1,4489.8,2.6292]
[1759888168276,2.22912713,4490.1,4489.8,2.6292]
[1759888168476,2.22912713,4490.1,4489.8,2.6282]
[1759888168776,2.23722109,4489.9,4489.1,2.22757894]
[1759888168977,0.1212,4489.9,4489.2,2.517]
[1759888169282,2.22732754,4489.7,4489.1,0.1122]
[1759888169649,2.22728527,4489.8,4489.2,2.517]
[1759888169877,2.22728527,4489.8,4489.1,2.33980875]
[1759888170345,2.22728527,4489.8,4489.2,2.517]
[1759888170545,2.22728527,4489.8,4489.1,2.33980875]
[1759888170546,2.22728527,4489.8,4489.3,2.517]
[1759888170776,0.1232,4489.9,4489.1,0.1122]
[1759888170968,0.4657,4489.7,4489.1,0.1122]
[1759888171163,0.1112,4489.5,4489.2,2.517]
[1759888171480,0.4657,4489.4,4489.1,0.001]
[1759888171656,0.4657,4489.4,4489.2,2.517]
[1759888171657,2.6931781,4489.4,4489.2,2.517]
[1759888172075,2.33863355,4489.5,4489.1,0.001]
[1759888172244,0.1112,4489.5,4489.2,2.517]
[1759888172591,0.1112,4489.7,4489.3,2.67758539]
[1759888172753,0.012,4489.9,4489.4,0.4278]
[1759888172954,0.012,4489.9,4489.5,2.517]
[1759888173150,0.012,4489.9,4489.6,2.24963026]
[1759888173461,0.012,4489.9,4489.6,2.67743026]
[1759888174389,0.012,4489.9,4489.7,2.65512031]
[1759888174594,0.012,4489.9,4489.8,2.5392727]
[1759888175169,0.012,4489.9,4489.8,2.517]
[1759888179103,2.23922266,4489.9,4489.8,2.517]
[1759888179474,0.012,4489.9,4489.8,2.517]
[1759888183291,0.012,4489.9,4489.7,0.1112]
[1759888183485,0.012,4489.9,4489.8,2.517]
[1759888183690,0.012,4489.9,4489.7,0.1112]
[1759888184215,0.012,4489.9,4489.8,2.517]
[1759888185717,0.4752,4489.9,4489.1,0.001]
[1759888185928,2.22733232,4489.7,4489.2,2.517]
[1759888186216,0.4632,4489.7,4489.2,2.517]
[1759888186425,0.1112,4489.8,4489.2,2.517]
[1759888186722,2.3384776,4489.8,4489.2,2.517]
[1759888187097,0.1112,4489.8,4489.2,2.517]
[1759888187404,0.1112,4489.8,4489.3,2.22751876]
[1759888187595,2.3384916,4489.8,4489.2,2.517]
[1759888187805,2.33847702,4489.8,4489.2,2.517]
[1759888188205,0.1112,4489.8,4489.2,4.74453329]
[1759888188991,0.1112,4489.8,4489.3,2.517]
[1759888190517,2.23923303,4489.9,4489.3,2.517]
[1759888190518,0.012,4489.9,4489.5,2.2273849]
[1759888190708,0.012,4489.9,4489.7,2.22730264]
[1759888190914,0.012,4489.9,4489.8,2.5392727]
[1759888191617,0.012,4489.9,4489.8,4.7665434]
[1759888191820,0.012,4489.9,4489.8,2.517]
[1759888194321,0.012,4489.9,4489.1,0.4483]
[1759888194322,0.012,4489.9,4489.1,0.001]
[1759888194524,0.012,4489.9,4489.2,4.85576767]
[1759888194824,0.012,4489.9,4489.2,2.33876767]
[1759888195005,2.23922569,4489.9,4489.3,2.517]
[1759888195202,2.23922569,4489.9,4489.2,2.33876767]
[1759888195203,0.012,4489.9,4489.2,0.1112]
[1759888195407,2.22744447,4489.5,4489.3,2.517]
[1759888195627,0.012,4489.9,4489.3,2.517]
[1759888195628,0.1112,4489.6,4489.3,2.517]
[1759888195823,2.33858482,4489.6,4489.3,2.517]
[1759888197736,2.22742169,4489.5,4489.3,2.517]
[1759888198026,2.33858105,4489.6,4489.3,2.517]
[1759888198837,2.22742291,4489.5,4489.3,2.517]
[1759888199125,0.1112,4489.6,4489.3,2.517]
[1759888200132,0.012,4489.9,4489.4,0.6991]
[1759888200426,0.012,4489.9,4489.7,2.22728534]
[1759888200632,0.012,4489.9,4489.8,4.7665434]
[1759888200829,0.012,4489.9,4489.8,4.7442707]
[1759888201132,0.012,4489.9,4489.8,5.3027707]
[1759888201378,0.012,4489.9,4489.8,6.05578306]
[1759888203845,0.012,4489.9,4489.8,3.09148306]
[1759888204347,0.012,4489.9,4489.8,5.3037707]
[1759888205507,0.012,4489.9,4489.8,0.1112]
[1759888205708,0.012,4489.9,4489.8,2.6282]
[1759888206217,0.012,4489.9,4489.1,0.001]
[1759888206218,0.012,4489.9,4489.1,0.4483]
[1759888206413,2.35045541,4489.9,4489.1,0.1122]
[1759888206624,2.227381,4489.6,4489.2,2.518]
[1759888206825,2.690581,4489.6,4489.1,0.1122]
[1759888207034,0.4632,4489.6,4489.2,2.518]
[1759888207415,2.6905738,4489.6,4489.2,2.518]
[1759888207820,0.1232,4489.9,4489.2,2.518]
[1759888208538,0.1232,4489.9,4489.2,4.74556382]
[1759888208539,2.35042654,4489.9,4489.2,4.74556382]
[1759888208742,2.83078644,4489.9,4489.2,2.518]
[1759888208905,2.22729199,4489.8,4489.2,2.518]
[1759888209108,0.6035599,4489.9,4489.2,2.518]
[1759888209453,0.1232,4489.9,4489.1,0.1122]
[1759888209652,2.22727112,4489.8,4489.3,2.518]
[1759888210743,2.22738389,4489.6,4489.3,2.518]
[1759888210949,2.69058389,4489.6,4489.3,2.518]
[1759888211445,0.4632,4489.5,4489.3,2.518]
[1759888211758,0.1232,4489.9,4489.3,2.518]
[1759888211959,2.81362954,4489.9,4489.3,2.518]
[1759888212315,2.22737323,4489.6,4489.1,0.1122]
[1759888212521,2.22737323,4489.6,4489.4,2.518]
[1759888212757,2.22733091,4489.7,4489.4,2.518]
[1759888213752,0.1232,4489.9,4489.5,2.22741953]
[1759888213918,0.1232,4489.9,4489.6,0.4473]
[1759888214118,0.012,4489.9,4489.6,0.4473]
[1759888214517,0.012,4489.9,4489.8,2.2272707]
[1759888214827,0.012,4489.9,4489.8,4.8564707]
[1759888215031,0.012,4489.9,4489.8,7.2377707]
[1759888215432,0.012,4489.9,4489.8,21.7377707]
[1759888216485,0.012,4489.9,4489.8,25.59502595]
[1759888216787,0.012,4489.9,4489.8,27.8467964]
[1759888219968,0.012,4489.9,4489.8,21.36034115]
[1759888220342,0.012,4489.9,4489.8,23.87934115]
[1759888220536,0.012,4489.9,4489.8,21.36034115]
[1759888220937,0.012,4489.9,4489.8,23.87934115]
[1759888221157,0.012,4489.9,4489.8,26.97476141]
[1759888224156,0.012,4489.9,4489.8,27.06395106]
[1759888229890,0.012,4489.9,4489.8,27.06295106]
[1759888230196,0.012,4489.9,4489.8,27.17415106]
[1759888230992,0.012,4489.9,4489.8,21.5607308]
[1759888231165,0.012,4489.9,4489.8,16.8813]
[1759888231519,0.012,4489.9,4489.8,4.7452707]
[1759888231740,0.012,4489.9,4489.1,0.001]
[1759888231873,0.4474,4489.9,4489.3,2.22751133]
[1759888232186,0.012,4489.9,4489.4,4.74542963]
[1759888233093,0.012,4489.9,4489.5,2.22741424]
[1759888233300,0.012,4489.9,4489.6,2.518]
[1759888233632,0.012,4489.9,4489.1,0.001]
[1759888233780,0.012,4489.9,4489.2,2.518]
[1759888233781,2.66271857,4489.8,4489.2,2.518]
[1759888235617,2.22733198,4489.7,4489.2,2.518]
[1759888235818,2.22733198,4489.7,4489.1,0.001]
[1759888235819,2.22740982,4489.6,4489.3,2.518]
[1759888236109,2.22732888,4489.7,4489.3,2.518]
[1759888236320,0.4354,4489.6,4489.3,2.518]
[1759888237020,0.4354,4489.5,4489.3,2.518]
[1759888237190,0.4354,4489.4,4489.3,2.518]
[1759888237601,2.23926808,4489.9,4489.3,2.518]
[1759888237602,0.012,4489.9,4489.3,2.518]
[1759888237798,0.012,4489.9,4489.4,2.22746392]
[1759888238018,2.23926837,4489.9,4489.5,2.518]
[1759888238406,0.4354,4489.8,4489.5,2.518]
[1759888238925,2.66269272,4489.8,4489.5,2.518]
[1759888239416,0.012,4489.9,4489.5,2.518]
[1759888241591,2.22736012,4489.7,4489.6,2.518]
[1759888241787,0.4576,4489.7,4489.1,0.001]
[1759888242014,2.22745824,4489.5,4489.2,2.518]
[1759888242221,0.4576,4489.4,4489.2,2.518]
[1759888242621,2.22745824,4489.5,4489.2,2.518]
[1759888242822,0.4576,4489.3,4489.1,0.001]
[1759888243029,2.68514854,4489.3,4489.2,2.518]
[1759888243517,2.22756838,4489.2,4489.1,0.001]
[1759888243720,2.68516838,4489.2,4489.1,2.519]
[1759888244135,2.22751487,4489.4,4489.1,2.519]
[1759888244310,2.68507825,4489.4,4489.1,2.519]
[1759888244621,0.4576,4489.3,4489.1,0.001]
[1759888244822,2.68511876,4489.3,4489.2,2.518]
[1759888245742,4.60511876,4489.3,4489.2,2.518]
[1759888248711,4.60511876,4489.3,4489.1,0.001]
[1759888249032,4.58636838,4489.2,4489.1,0.001]
[1759888249212,4.58636838,4489.2,4489.1,2.519]
[1759888250418,4.58636838,4489.2,4489.1,0.001]
[1759888250621,34.58636838,4489.2,4489.1,2.519]
[1759888251641,34.58636838,4489.2,4489.1,0.001]
[1759888251946,34.58636838,4489.2,4489.1,2.519]
[1759888252407,26.81336838,4489.2,4489.1,2.519]
[1759888252741,10.35836838,4489.2,4489.1,2.519]
[1759888252917,13.45378864,4489.2,4489.1,2.519]
[1759888254233,7.68178864,4489.2,4489.1,2.519]
[1759888254445,37.68178864,4489.2,4489.1,2.519]
[1759888256217,7.68178864,4489.2,4489.1,2.519]
[1759888256522,37.68178864,4489.2,4489.1,2.519]
[1759888257238,7.68178864,4489.2,4489.1,2.519]
[1759888257454,37.68178864,4489.2,4489.1,2.519]
[1759888260619,9.50598864,4489.2,4489.1,2.519]
[1759888260824,9.94478864,4489.2,4489.1,2.519]
[1759888261038,9.89078864,4489.2,4489.1,2.519]
[1759888261432,9.93878864,4489.2,4489.1,2.519]
[1759888261667,0.002,4489.8,4489.1,2.519]
[1759888261989,0.1112,4489.2,4489.1,2.519]
[1759888262575,2.33876838,4489.2,4489.1,2.519]
[1759888262779,5.87298864,4489.2,4489.1,2.519]
[1759888262982,2.77756838,4489.2,4489.1,2.519]
[1759888263159,2.33876838,4489.2,4489.1,2.519]
[1759888263560,0.1112,4489.2,4489.1,2.519]
[1759888264491,0.1112,4489.2,4489.1,3.0714715]
[1759888266884,2.75913835,4489.8,4489.1,3.09374768]
[1759888266885,0.41549923,4489.8,4489.1,3.09374768]
[1759888267193,0.52669923,4489.8,4489.4,2.22742713]
[1759888267365,0.41549923,4489.8,4489.4,2.33862713]
[1759888267565,0.41549923,4489.8,4489.5,0.02227419]
[1759888269064,0.41549923,4489.8,4489.6,2.22736212]
[1759888269261,0.41549923,4489.8,4489.7,4.98140394]
[1759888269501,0.41549923,4489.8,4489.7,5.45560394]
[1759888270305,0.002,4489.8,4489.7,5.45560394]
[1759888271097,0.002,4489.8,4489.7,19.95560394]
[1759888272374,0.002,4489.8,4489.7,21.87560394]
[1759888273075,0.002,4489.8,4489.7,22.31229408]
[1759888273684,0.002,4489.8,4489.7,19.79429408]
[1759888273888,0.002,4489.8,4489.7,17.87429408]
[1759888274100,0.002,4489.8,4489.7,20.39229408]
[1759888274297,0.002,4489.8,4489.7,17.87429408]
[1759888274597,0.002,4489.8,4489.7,20.39229408]
[1759888276200,0.002,4489.8,4489.7,17.43760394]
[1759888276396,0.002,4489.8,4489.7,19.95660394]
[1759888277120,0.002,4489.8,4489.7,5.45660394]
[1759888279520,0.002,4489.8,4489.7,5.56780394]
[1759888280718,0.002,4489.8,4489.7,5.09360394]
[1759888280922,0.002,4489.8,4489.7,5.53920394]
[1759888281416,0.002,4489.8,4489.7,5.42800394]
[1759888281793,0.002,4489.8,4489.7,5.87894608]
[1759888281988,0.002,4489.8,4489.7,20.37894608]
[1759888282391,0.002,4489.8,4489.7,23.47436634]
[1759888283086,0.002,4489.8,4489.7,20.37894608]
[1759888285119,0.002,4489.8,4489.7,17.85994608]
[1759888285323,0.002,4489.8,4489.7,20.37794608]
[1759888287924,0.002,4489.8,4489.7,17.85994608]
[1759888288124,0.002,4489.8,4489.7,20.37794608]
[1759888291024,0.002,4489.8,4489.7,5.87794608]
[1759888291534,0.002,4489.8,4489.7,20.48914608]
[1759888292310,0.002,4489.8,4489.7,22.40914608]
[1759888297745,0.002,4489.8,4489.7,19.89114608]
[1759888297914,0.002,4489.8,4489.7,22.40814608]
[1759888302246,0.002,4489.8,4489.7,23.04174608]
[1759888302633,0.002,4489.8,4489.7,23.13093553]
[1759888303421,1e-08,4489.9,4489.8,4.7808707]
[1759888303621,1e-08,4489.9,4489.8,10.89039166]
[1759888303823,1e-08,4489.9,4489.8,11.35209166]
[1759888304025,1e-08,4489.9,4489.8,11.44127793]
[1759888306759,1e-08,4489.9,4489.8,25.94127793]
[1759888307051,1e-08,4489.9,4489.8,27.82567793]
[1759888307259,1e-08,4489.9,4489.8,27.73649166]
[1759888307836,1e-08,4489.9,4489.8,27.73549166]
[1759888312930,1e-08,4489.9,4489.8,28.36909166]
[1759888313263,1e-08,4489.9,4489.8,28.45827793]
[1759888319139,1e-08,4489.9,4489.8,6.94992742]
[1759888319339,1e-08,4489.9,4489.8,7.21515697]
[1759888319546,1e-08,4489.9,4489.8,7.1259707]
[1759888319935,1e-08,4489.9,4489.8,2.6889707]
[1759888320136,1e-08,4489.9,4489.8,5.2059707]
[1759888322079,1e-08,4489.9,4489.8,7.1010707]
[1759888322278,1e-08,4489.9,4489.8,8.46477907]
[1759888322830,1e-08,4489.9,4489.8,8.57597907]
[1759888325156,1e-08,4489.9,4489.8,23.07697907]
[1759888325680,1e-08,4489.9,4489.8,23.71057907]
[1759888326040,1e-08,4489.9,4489.8,23.79976554]
[1759888328444,0.002,4490.3,4489.8,23.79976554]
[1759888328445,0.002,4490.4,4490.1,0.6336]
[1759888328767,0.002,4490.4,4490.3,8.6383732]
[1759888328969,0.002,4490.4,4490.3,11.2665732]
[1759888329144,0.002,4490.4,4490.3,26.2033732]
[1759888329341,0.002,4490.4,4490.3,19.19502269]
[1759888329570,0.002,4490.4,4490.3,27.8857732]
[1759888329771,0.002,4490.4,4490.3,30.13754365]
[1759888331279,0.002,4490.4,4490.3,25.30454365]
[1759888331446,0.002,4490.4,4490.3,27.82154365]
[1759888331983,0.002,4490.4,4490.3,5.02679314]
[1759888332149,0.002,4490.4,4490.3,2.77502269]
[1759888332480,0.002,4490.4,4490.3,5.29202269]
[1759888332643,0.002,4490.4,4490.3,2.33822269]
[1759888332971,0.002,4490.4,4490.3,5.29202269]
[1759888334176,0.002,4490.4,4490.3,0.1112]
[1759888334478,0.002,4490.4,4490.3,8.7119732]
[1759888334645,0.002,4490.4,4490.3,10.24268163]
[1759888334848,0.002,4490.4,4490.3,12.79628163]
[1759888335175,0.006,4491.3,4490.8,2.22677473]
[1759888335477,0.006,4491.3,4490.8,8.62279298]
[1759888335645,0.006,4491.3,4490.8,9.17732524]
[1759888335847,0.006,4491.3,4490.8,10.31774222]
[1759888338583,0.006,4491.3,4490.8,6.45999171]
[1759888339082,0.006,4491.3,4490.8,20.95999171]
[1759888342188,0.006,4491.3,4490.8,18.44399171]
[1759888342366,0.006,4491.3,4490.8,20.95999171]
[1759888343048,0.006,4491.3,4490.8,24.05418129]
[1759888343253,0.012,4490.9,4490.8,24.05418129]
[1759888344885,0.012,4490.9,4490.8,24.14335762]
[1759888347086,0.012,4490.9,4490.8,26.06335762]
[1759888368213,1e-08,4490.9,4490.8,26.69695762]
[1759888371820,1e-08,4491.3,4491.2,2.22657641]
[1759888372021,1e-08,4491.3,4491.2,12.96215557]
[1759888372196,1e-08,4491.3,4491.2,13.39255557]
[1759888372520,1e-08,4491.3,4491.2,25.2015662]
[1759888373592,1e-08,4491.3,4491.2,22.6855662]
[1759888373786,1e-08,4491.3,4491.2,27.45333665]
[1759888374424,1e-08,4491.3,4491.2,24.93733665]
[1759888374829,1e-08,4491.3,4491.2,27.45333665]
[1759888379739,0.00200001,4491.3,4491.2,27.45333665]
[1759888382566,0.00200001,4491.3,4491.2,24.93733665]
[1759888382767,0.00200001,4491.3,4491.2,27.45333665]
[1759888384262,0.00200001,4491.3,4491.2,25.2015662]
[1759888385566,0.00200001,4491.3,4491.2,10.7015662]
[1759888386065,0.00200001,4491.3,4491.2,25.2015662]
[1759888386663,0.00200001,4491.3,4491.2,19.59137662]
[1759888386965,0.00200001,4491.3,4491.2,25.2015662]
[1759888387161,0.00200001,4491.3,4491.2,27.45333665]
[1759888387365,0.00200001,4491.3,4491.2,31.18112623]
[1759888387664,0.00200001,4491.3,4491.2,28.08693665]
[1759888389965,0.00200001,4491.3,4491.2,27.45333665]
[1759888393276,0.00200001,4491.3,4491.2,24.93733665]
[1759888393459,0.00200001,4491.3,4491.2,27.45333665]
[1759888395176,0.00200001,4491.3,4491.2,27.45233665]
[1759888396363,0.00200001,4491.3,4491.2,9.85814707]
[1759888396566,0.00200001,4491.3,4491.2,12.95233665]
[1759888396873,0.00200001,4491.3,4491.2,27.45233665]
[1759888397287,0.00200001,4491.3,4491.2,24.93733665]
[1759888397784,0.00200001,4491.3,4491.2,27.45233665]
[1759888399777,0.00200001,4491.3,4491.2,12.95233665]
[1759888400286,0.00200001,4491.3,4491.2,27.45233665]
[1759888403083,0.00200001,4491.3,4491.2,28.21216956]
[1759888404191,0.00200001,4491.3,4491.2,28.84576956]
[1759888404803,0.01,4492.9,4491.2,28.84576956]
[1759888404804,1e-08,4491.9,4491.5,0.6336]
[1759888405004,1e-08,4491.9,4491.8,8.11150148]
[1759888405313,1e-08,4491.9,4491.8,10.62650148]
[1759888405463,1e-08,4491.9,4491.8,25.99517154]
[1759888407003,1e-08,4491.9,4491.8,28.94477154]
[1759888407299,1e-08,4491.9,4491.8,31.19654199]
[1759888410567,1e-08,4491.9,4491.8,21.8779195]
[1759888410809,1e-08,4491.9,4491.8,24.3929195]
[1759888410963,1e-08,4491.9,4491.8,9.4356195]
[1759888411162,1e-08,4491.9,4491.8,7.18384905]
[1759888411400,1e-08,4491.9,4491.8,3.20614905]
[1759888411699,1e-08,4491.9,4491.8,4.87474177]
[1759888411929,1e-08,4491.9,4491.8,5.30977899]
[1759888415037,1e-08,4491.9,4491.8,19.80977899]
[1759888415746,1e-08,4491.9,4491.8,21.67900102]
[1759888416039,0.00200001,4491.9,4491.8,7.84771916]
[1759888416210,0.00200001,4491.9,4491.8,3.46349713]
[1759888416401,0.00200001,4491.9,4491.8,5.97849713]
[1759888416598,0.00200001,4491.9,4491.8,5.52119713]
[1759888417200,0.00200001,4491.9,4491.8,3.00619713]
[1759888417404,0.00200001,4491.9,4491.8,2.33747899]
[1759888417634,0.00200001,4491.9,4491.8,5.33204177]
[1759888417943,0.00200001,4491.9,4491.8,5.30977899]
[1759888419033,0.00200001,4491.9,4491.8,2.515]
[1759888419233,0.00200001,4491.9,4491.8,4.74127899]
[1759888419537,0.00200001,4491.9,4491.8,5.19857899]
[1759888420930,0.00200001,4491.9,4491.8,4.74127899]
[1759888421508,0.00200001,4491.9,4491.6,0.8655]
[1759888421836,0.00200001,4491.9,4491.7,2.515]
[1759888422036,0.00200001,4491.9,4491.8,2.22627899]
[1759888422204,0.00200001,4491.9,4491.8,2.515]
[1759888422603,0.00200001,4491.9,4491.8,4.74127899]
[1759888422827,0.00200001,4491.9,4491.8,2.515]
[1759888423699,0.00200001,4491.9,4491.8,4.74127899]
[1759888425740,0.00200001,4491.9,4491.8,2.515]
[1759888425941,0.00200001,4491.9,4491.8,4.74127899]
[1759888427219,0.46620001,4491.9,4491.2,0.6688061]
[1759888427449,0.4642,4491.8,4491.3,1.907]
[1759888427654,0.4642,4491.7,4491.3,1.907]
[1759888427819,0.00200001,4491.9,4491.3,1.907]
[1759888427820,0.4642,4491.6,4491.3,1.907]
[1759888428147,0.4642,4491.8,4491.3,1.907]
[1759888428320,2.22824365,4491.9,4491.3,1.907]
[1759888428321,0.4642,4491.7,4491.3,1.907]
[1759888428749,2.22824365,4491.9,4491.3,1.907]
[1759888428954,0.1112,4491.8,4491.3,1.907]
[1759888430215,0.1112,4491.8,4491.3,4.13348915]
[1759888432523,0.1112,4491.8,4491.3,1.907]
[1759888433153,2.33748533,4491.8,4491.3,1.907]
[1759888433354,2.22633824,4491.7,4491.3,1.907]
[1759888433667,4.31822249,4491.7,4491.1,0.001]
[1759888433866,4.31822249,4491.7,4491.2,2.515]
[1759888434077,0.4642,4491.6,4491.2,2.515]
[1759888434230,2.22647726,4491.4,4491.3,0.001]
[1759888434648,2.69067726,4491.4,4491.3,0.001]
[1759888437061,2.69067726,4491.4,4491.3,2.516]
[1759888437445,4.61067726,4491.4,4491.3,0.001]
[1759888437641,4.61067726,4491.4,4491.3,2.439]
[1759888439566,4.61067726,4491.4,4491.3,2.517]
[1759888439950,4.61067726,4491.4,4491.3,0.001]
[1759888440150,4.61067726,4491.4,4491.3,2.517]
[1759888440976,4.61067726,4491.4,4491.3,0.001]
[1759888441150,4.61067726,4491.4,4491.3,2.517]
[1759888442049,2.3842,4491.4,4491.3,2.517]
[1759888442250,4.61067726,4491.4,4491.3,2.517]
[1759888443270,8.46469975,4491.4,4491.3,2.517]
[1759888446161,6.23822249,4491.4,4491.3,2.517]
[1759888446375,4.61067726,4491.4,4491.3,2.517]
[1759888448069,8.46469975,4491.4,4491.3,2.517]
[1759888451349,8.94383417,4491.4,4491.3,2.517]
[1759888451980,8.94383417,4491.4,4491.3,0.001]
[1759888452179,38.94383417,4491.4,4491.3,0.001]
[1759888452382,39.15182857,4491.4,4491.3,0.001]
[1759888452764,38.94383417,4491.4,4491.3,0.001]
[1759888453157,8.94383417,4491.4,4491.3,0.001]
[1759888453384,38.94383417,4491.4,4491.3,0.001]
[1759888453857,14.32583417,4491.4,4491.3,0.001]
[1759888454049,14.11383417,4491.4,4491.3,0.001]
[1759888454256,25.53683417,4491.4,4491.3,0.001]
[1759888454481,25.74492017,4491.4,4491.3,0.001]
[1759888455287,39.15192017,4491.4,4491.3,0.001]
[1759888457184,39.82097834,4491.4,4491.3,0.001]
[1759888457701,39.15192017,4491.4,4491.3,0.001]
[1759888458193,31.82892017,4491.4,4491.3,0.001]
[1759888458360,12.70492017,4491.4,4491.3,0.001]
[1759888458562,9.15192017,4491.4,4491.3,0.001]
[1759888459264,11.18492017,4491.4,4491.3,0.001]
[1759888459592,9.15192017,4491.4,4491.3,0.001]
[1759888459795,11.19992017,4491.4,4491.3,0.001]
[1759888461498,39.93725448,4491.4,4491.3,0.001]
[1759888461876,39.26819631,4491.4,4491.3,0.001]
[1759888462279,40.5015653,4491.4,4491.3,0.001]
[1759888462488,41.170716,4491.4,4491.3,0.001]
[1759888463304,40.57094701,4491.4,4491.3,0.001]
[1759888463474,32.5536,4491.2,4491.1,0.001]
[1759888463673,38.63434764,4490.9,4490.8,0.001]
[1759888463902,39.32156806,4490.9,4490.8,0.001]
[1759888464080,39.84668449,4490.9,4490.8,0.001]
[1759888465076,42.18900664,4490.9,4490.8,0.001]
[1759888465409,39.09083432,4490.9,4490.8,0.001]
[1759888465914,42.18900664,4490.9,4490.8,0.001]
[1759888466080,42.09978217,4490.9,4490.8,0.001]
[1759888466276,42.89989014,4490.9,4490.8,0.001]
[1759888466504,39.80171782,4490.9,4490.8,0.001]
[1759888467478,42.89989014,4490.9,4490.8,0.001]
[1759888469209,42.09978217,4490.9,4490.8,0.001]
[1759888470109,4.78037473,4490.8,4490.7,0.001]
[1759888470427,29.47265943,4490.8,4490.7,0.001]
[1759888470578,0.68771238,4490.8,4490.7,0.001]
[1759888470876,7.68034705,4490.8,4490.7,0.001]
[1759888471078,8.15948147,4490.8,4490.7,0.001]
[1759888471307,6.23948147,4490.8,4490.7,0.001]
[1759888471609,7.68034705,4490.8,4490.7,0.001]
[1759888473798,0.11627614,4491.4,4490.7,2.517]
[1759888474014,3.09817232,4490.9,4490.7,2.517]
[1759888474216,0.4354,4490.8,4490.7,2.517]
[1759888474432,2.66217473,4490.8,4490.7,0.001]
[1759888474786,34.58217473,4490.8,4490.7,0.001]
[1759888474987,35.27011071,4490.8,4490.7,0.001]